bitfinex/quotes_ETHUSD_20241103
["timestamp","ask_amount","ask_price","bid_price","bid_amount"]
[1730667046265,3.64912,2466.4,2466.2,0.10353499]
[1730667046470,3.64912,2466.4,2466.1,0.7804]
[1730667046670,3.64912,2466.4,2466.3,0.10353499]
[1730667046871,3.64912,2466.4,2466.1,0.7804]
[1730667047387,7.29828,2466.4,2466.2,0.10353499]
[1730667047599,3.64919,2466.3,2466.2,0.10353499]
[1730667048306,3.64912,2466.4,2465.9,0.01]
[1730667048307,3.64958,2466.1,2465.9,0.01]
[1730667048688,3.64958,2466.1,2466.0,0.10355897]
[1730667048689,3.64948,2466.1,2466.0,0.10355897]
[1730667048845,4.19948,2466.1,2466.0,0.10355897]
[1730667049136,7.19948,2466.1,2466.0,0.10355897]
[1730667049293,7.19948,2466.1,2465.3,0.7804]
[1730667049294,3.65036,2465.6,2465.3,0.7804]
[1730667050043,3.65011,2465.7,2465.3,0.7804]
[1730667050497,3.65023,2465.6,2465.3,0.7804]
[1730667051537,3.65046,2465.5,2465.4,0.10334897]
[1730667051844,3.65046,2465.5,2465.4,0.10352487]
[1730667052147,3.65046,2465.5,2465.1,4.43134]
[1730667052326,3.65046,2465.5,2465.4,0.10352487]
[1730667052498,3.65046,2465.5,2465.1,4.42134]
[1730667052831,3.65046,2465.5,2465.1,4.43134]
[1730667053036,3.65046,2465.5,2465.2,0.10352487]
[1730667053411,3.65023,2465.6,2465.3,0.01]
[1730667053600,7.30053,2465.6,2465.3,0.01]
[1730667053795,3.65023,2465.6,2465.4,0.10352487]
[1730667054027,3.65039,2465.5,2465.4,0.10352487]
[1730667054230,3.65023,2465.6,2465.3,0.01]
[1730667054397,3.65023,2465.6,2465.4,0.10352487]
[1730667054802,7.30057,2465.6,2465.4,0.10352487]
[1730667055145,7.30057,2465.6,2465.3,0.01]
[1730667055296,3.65023,2465.6,2465.5,0.10352487]
[1730667055493,3.65023,2465.6,2465.3,0.01]
[1730667055694,3.65023,2465.6,2465.5,0.10352487]
[1730667055936,3.65023,2465.6,2465.3,0.01]
[1730667056543,3.65023,2465.6,2465.4,0.10352487]
[1730667057044,3.65037,2465.5,2465.4,0.10352487]
[1730667057542,3.65037,2465.5,2465.1,0.7804]
[1730667057698,3.65037,2465.5,2465.4,0.10352487]
[1730667057905,3.65037,2465.5,2465.1,4.43135]
[1730667058134,3.65016,2465.7,2465.4,0.10352487]
[1730667058438,3.65015,2465.7,2465.5,0.10352487]
[1730667058936,0.730005,2465.7,2465.3,0.01]
[1730667059140,3.65045,2465.5,2465.3,0.01]
[1730667059340,3.60045,2465.5,2465.3,0.01]
[1730667061160,3.65016,2465.7,2465.3,0.01]
[1730667061161,3.65028,2465.6,2465.3,0.01]
[1730667061329,4.69851607,2466.0,2465.5,0.01]
[1730667061535,8.34815607,2466.0,2465.7,0.01]
[1730667061826,5.34815607,2466.0,2465.7,0.01]
[1730667062216,1.69851607,2466.0,2465.7,0.01]
[1730667062427,1.69851607,2466.0,2465.9,0.01]
[1730667063372,3.64936,2466.2,2465.9,0.01]
[1730667063569,0.63504693,2466.2,2466.1,0.01]
[1730667064357,6.64911,2466.4,2466.1,0.01]
[1730667065077,3.6492,2466.3,2465.9,0.01]
[1730667065554,3.0,2466.4,2465.9,0.01]
[1730667065731,3.6492,2466.3,2465.9,0.01]
[1730667065927,3.64951,2466.1,2465.9,0.01]
[1730667066265,0.63501868,2466.5,2465.7,0.731042]
[1730667066266,3.64947,2466.2,2465.7,3.66005]
[1730667066566,3.64949,2466.1,2466.0,0.10350887]
[1730667066769,3.64949,2466.1,2465.7,3.66005]
[1730667066966,3.64949,2466.1,2466.0,0.10350887]
[1730667067166,3.64965,2466.0,2465.7,0.01]
[1730667067371,3.64949,2466.1,2465.7,0.01]
[1730667068236,3.64949,2466.1,2465.7,3.66005]
[1730667068703,7.29909,2466.1,2465.7,0.01]
[1730667068966,7.24909,2466.1,2465.7,0.01]
[1730667069462,3.59949,2466.1,2465.7,0.01]
[1730667070637,3.59949,2466.1,2465.7,3.66005]
[1730667071956,3.64949,2466.1,2465.9,0.01]
[1730667072764,1.69826548,2466.2,2465.9,0.01]
[1730667073369,5.34761548,2466.2,2465.9,0.01]
[1730667074005,5.34783548,2466.1,2465.9,0.01]
[1730667074178,3.64957,2466.1,2465.9,0.01]
[1730667075279,3.64957,2466.1,2465.7,7.30005]
[1730667075280,3.64957,2466.1,2465.7,0.01]
[1730667075521,3.6497,2466.0,2465.7,0.01]
[1730667075730,3.65002,2465.8,2465.6,0.7988]
[1730667075899,2.71072572,2466.0,2465.5,0.01]
[1730667076096,5.34804548,2465.9,2465.5,0.01]
[1730667076300,3.64978,2465.9,2465.5,0.01]
[1730667076599,3.64978,2465.9,2465.6,0.10354083]
[1730667077009,1.69826548,2466.0,2465.6,3.75368083]
[1730667077294,5.34789548,2466.0,2465.6,3.75368083]
[1730667077666,1.69826548,2466.0,2465.7,0.01]
[1730667077873,1.69826548,2466.0,2465.7,0.11356082]
[1730667078093,1.69826548,2466.0,2465.8,0.7988]
[1730667078311,1.69826548,2466.2,2465.8,0.7988]
[1730667078571,5.34762548,2466.2,2465.9,0.10355682]
[1730667078782,1.69826548,2466.2,2465.9,0.11355682]
[1730667079083,5.34747548,2466.3,2465.9,0.11355682]
[1730667079306,8.99676548,2466.3,2465.9,0.11355682]
[1730667079509,8.99676548,2466.3,2465.9,0.01]
[1730667080099,1.69826548,2466.2,2465.9,0.01]
[1730667080273,3.64935,2466.2,2465.9,0.01]
[1730667080470,5.34761548,2466.2,2465.9,0.01]
[1730667080792,3.64935,2466.2,2465.9,0.01]
[1730667081114,3.64935,2466.2,2465.8,0.7988]
[1730667081115,3.64959,2466.1,2465.8,0.7988]
[1730667081419,1.69826548,2466.1,2465.7,0.01]
[1730667081615,5.34768548,2466.2,2465.9,0.10349286]
[1730667081759,5.34768548,2466.2,2465.7,3.65997]
[1730667082115,3.64948,2466.1,2465.7,0.01]
[1730667082404,3.64948,2466.1,2465.8,0.10351285]
[1730667082605,3.64948,2466.1,2465.7,0.01]
[1730667082814,3.64948,2466.1,2465.8,0.10351285]
[1730667082984,6.28718902,2466.2,2465.7,0.01]
[1730667083317,9.93661902,2466.2,2465.8,0.10351285]
[1730667083608,9.93661902,2466.2,2465.7,3.65999]
[1730667083965,9.93661902,2466.2,2465.8,0.10351285]
[1730667084201,3.6495,2466.1,2465.8,0.10351285]
[1730667084621,3.6495,2466.1,2465.7,3.65999]
[1730667084782,3.6495,2466.1,2465.9,0.10348888]
[1730667084978,3.6495,2466.1,2465.7,3.65999]
[1730667085180,1.69826548,2466.3,2466.1,3.65948]
[1730667085418,2.12612417,2466.4,2466.3,3.65919]
[1730667085419,1.69826548,2466.4,2466.3,3.65919]
[1730667085584,1.69826548,2466.7,2466.4,3.64903]
[1730667085794,1.69826548,2466.8,2466.5,0.8101]
[1730667086091,1.69826548,2466.8,2466.5,0.91358888]
[1730667086621,5.34671548,2466.8,2466.5,0.91358888]
[1730667086904,3.6486,2466.7,2466.5,0.91358888]
[1730667087068,5.34671548,2466.8,2466.5,0.91358888]
[1730667087669,3.64861,2466.7,2466.5,0.91358888]
[1730667088720,7.28141786,2466.9,2466.5,0.91358888]
[1730667088874,5.34658548,2466.9,2466.5,4.56245888]
[1730667089404,3.64846,2466.8,2466.5,0.91358888]
[1730667089904,3.64853,2466.8,2466.5,0.91358888]
[1730667090127,5.34679548,2466.8,2466.5,0.91358888]
[1730667090326,2.44555745,2466.8,2466.5,0.10348888]
[1730667090537,4.19872,2466.7,2466.3,0.01]
[1730667090834,4.19872,2466.7,2466.6,0.10330502]
[1730667091001,4.19872,2466.7,2466.3,0.01]
[1730667091187,4.19872,2466.7,2466.4,0.10330502]
[1730667091387,5.34672548,2466.8,2466.5,0.01]
[1730667091588,3.64846,2466.8,2466.5,0.01]
[1730667092141,1.69826548,2466.9,2466.6,0.10330502]
[1730667092299,5.34657548,2466.9,2466.6,0.10330502]
[1730667092623,1.69826548,2466.9,2466.6,0.90340502]
[1730667092993,5.34656548,2466.9,2466.6,0.90340502]
[1730667094390,1.69826548,2467.0,2466.6,1.35964652]
[1730667094590,1.69826548,2467.2,2466.8,0.8001]
[1730667094824,1.69826548,2467.2,2466.9,0.01]
[1730667095018,5.34609548,2467.3,2466.9,0.11300924]
[1730667095535,5.34582548,2467.4,2466.9,3.76121924]
[1730667095709,5.34582548,2467.4,2466.9,7.40943924]
[1730667096024,1.69826548,2467.4,2466.9,3.76121924]
[1730667096227,3.64772,2467.3,2466.9,3.76121924]
[1730667097203,1.69826548,2467.5,2466.9,0.11300924]
[1730667097407,3.64796,2467.2,2466.9,0.10300924]
[1730667097840,3.64771,2467.3,2466.9,0.11300924]
[1730667098040,7.29551,2467.3,2466.9,0.11300924]
[1730667098539,3.64771,2467.3,2466.9,0.11300924]
[1730667101136,5.34578548,2467.5,2467.0,3.64808]
[1730667101404,5.34578548,2467.5,2466.9,3.76129924]
[1730667101405,5.34547548,2467.7,2467.1,0.7724]
[1730667101609,3.64743,2467.5,2467.1,4.42028]
[1730667102142,4.19728,2467.6,2467.2,0.10300924]
[1730667102348,3.64742,2467.5,2467.2,0.10300924]
[1730667102644,4.19727,2467.6,2467.1,8.06818]
[1730667103064,3.64721,2467.7,2467.1,8.06818]
[1730667103065,3.64721,2467.7,2467.3,3.65769]
[1730667103208,0.55,2467.8,2467.3,3.65769]
[1730667103408,3.64697,2467.8,2467.3,3.65769]
[1730667103607,3.64697,2467.8,2467.4,0.10300924]
[1730667103947,3.64718,2467.7,2467.4,0.10300924]
[1730667104360,3.64697,2467.8,2467.4,0.10300924]
[1730667104509,7.29405,2467.8,2467.4,0.10300924]
[1730667104711,3.64719,2467.7,2467.3,0.01]
[1730667105018,3.64697,2467.8,2467.4,0.10300924]
[1730667105535,3.64697,2467.8,2467.5,0.7624]
[1730667106066,3.64697,2467.8,2467.6,0.10300924]
[1730667106447,3.83877,2468.0,2467.6,0.10300924]
[1730667106448,0.192,2468.0,2467.6,0.10300924]
[1730667106647,0.192,2468.0,2467.7,0.01]
[1730667107055,0.192,2468.0,2467.8,0.10270168]
[1730667107220,0.192,2468.0,2467.7,0.01]
[1730667107421,0.192,2468.0,2467.8,0.86510168]
[1730667107621,0.192,2468.0,2467.8,4.51206168]
[1730667107833,0.192,2468.0,2467.9,3.65682]
[1730667108260,0.192,2468.0,2467.9,4.52141846]
[1730667109030,0.192,2468.0,2467.9,4.60245201]
[1730667109449,0.192,2468.0,2467.9,4.52141846]
[1730667109650,3.7067346,2469.1,2468.6,0.7724]
[1730667109851,3.64528,2469.0,2468.6,0.7724]
[1730667110169,3.6452,2469.0,2468.7,0.10208671]
[1730667110740,3.64535,2468.9,2468.7,0.10208671]
[1730667111361,3.64528,2469.0,2468.7,0.10208671]
[1730667111868,3.64548,2468.9,2468.7,0.10208671]
[1730667112365,3.64549,2468.8,2468.7,0.10208671]
[1730667112755,3.64605,2468.5,2468.2,0.01]
[1730667112948,3.64604,2468.5,2468.2,0.01]
[1730667113148,3.64608,2468.4,2468.3,0.10195503]
[1730667113484,3.64608,2468.4,2468.0,0.01]
[1730667113793,3.64643,2468.2,2468.0,0.01]
[1730667113985,3.64627,2468.3,2468.1,0.10202685]
[1730667114491,3.64603,2468.5,2468.1,0.10202685]
[1730667114688,0.55,2468.8,2468.3,0.7847]
[1730667114689,3.64579,2468.6,2468.3,0.7847]
[1730667115057,3.64579,2468.6,2468.4,0.10211065]
[1730667115584,6.64528,2469.0,2468.4,0.10211065]
[1730667115585,7.29091,2468.9,2468.4,0.11211065]
[1730667115900,3.64557,2468.8,2468.4,0.11211065]
[1730667116045,3.7067046,2469.1,2468.6,0.01]
[1730667116244,3.7067046,2469.1,2468.7,0.88671887]
[1730667116245,3.64521,2469.0,2468.7,0.88671887]
[1730667116543,3.64549,2468.8,2468.7,0.10201887]
[1730667117045,3.64534,2468.9,2468.7,0.10201887]
[1730667117250,3.64521,2469.0,2468.7,0.88671887]
[1730667117451,3.64521,2469.0,2468.7,1.34098376]
[1730667118146,0.0615846,2469.1,2469.0,0.01]
[1730667118341,0.0615846,2469.1,2469.0,0.7947]
[1730667118547,0.0615846,2469.1,2469.0,0.89667498]
[1730667120053,3.7066346,2469.1,2469.0,0.89667498]
[1730667120252,0.0615846,2469.1,2469.0,0.89667498]
[1730667120457,0.0615846,2469.1,2469.0,4.54187498]
[1730667120765,0.0615846,2469.1,2469.0,4.99606248]
[1730667121095,0.0615846,2469.1,2469.0,1.35086248]
[1730667122089,0.0615846,2469.1,2469.0,4.99606248]
[1730667122255,0.0615846,2469.1,2469.0,8.07706462]
[1730667122459,0.63490577,2469.9,2469.8,0.7847]
[1730667122697,3.64387,2469.9,2469.8,0.88595269]
[1730667122876,5.64382,2470.0,2469.8,0.88595269]
[1730667123275,2.0,2470.0,2469.9,0.01]
[1730667123478,2.0,2470.0,2469.9,3.65387]
[1730667123672,2.0,2470.0,2469.9,4.10785227]
[1730667123896,2.0,2470.0,2469.9,4.20896541]
[1730667124404,2.0,2470.0,2469.9,0.56509541]
[1730667128295,2.0,2470.0,2469.9,1.39789541]
[1730667128500,2.0,2470.0,2469.9,5.04176541]
[1730667129404,2.0,2470.0,2469.9,1.39789541]
[1730667130124,2.0,2470.0,2469.9,5.04176541]
[1730667130623,2.0,2470.0,2469.9,1.39789541]
[1730667131883,2.0,2470.0,2469.9,0.10111314]
[1730667131884,5.64372,2470.0,2469.9,0.10111314]
[1730667132286,5.64372,2470.0,2469.7,0.01]
[1730667132287,3.64401,2469.8,2469.7,0.01]
[1730667132728,3.64401,2469.8,2469.7,0.10668401]
[1730667132925,7.28785,2469.9,2469.7,0.01]
[1730667133229,7.28785,2469.9,2469.7,0.10668401]
[1730667133230,3.64401,2469.8,2469.7,0.10668401]
[1730667133415,3.64401,2469.8,2469.7,0.01]
[1730667133627,3.64401,2469.8,2469.7,0.09668401]
[1730667133927,3.64416,2469.7,2469.1,0.8428]
[1730667134132,3.64463,2469.4,2469.1,0.01]
[1730667134299,3.6449,2469.2,2469.0,0.10257652]
[1730667134636,3.64505,2469.1,2469.0,0.09257652]
[1730667134788,3.64505,2469.1,2468.8,0.01]
[1730667134988,7.2902,2469.1,2468.8,0.01]
[1730667135197,3.64522,2469.0,2468.8,0.01]
[1730667135394,3.6452,2469.0,2468.8,0.01]
[1730667135624,3.64505,2469.1,2468.8,0.01]
[1730667136043,3.64528,2469.0,2468.8,0.01]
[1730667136997,3.64491,2469.2,2469.0,0.01]
[1730667137324,3.64456,2469.5,2469.4,0.01]
[1730667137626,3.64479,2469.3,2469.1,0.8328]
[1730667138028,0.7640455,2469.7,2469.0,0.01]
[1730667138344,3.64505,2469.1,2469.0,0.01]
[1730667140103,0.0616,2469.3,2469.0,0.01]
[1730667140307,3.64501,2469.2,2469.0,0.01]
[1730667140851,3.70646,2469.3,2469.0,0.01]
[1730667140852,3.64505,2469.1,2469.0,0.01]
[1730667141001,3.64505,2469.1,2468.8,0.8328]
[1730667141002,3.64505,2469.1,2468.8,0.8428]
[1730667141199,3.64505,2469.1,2469.0,0.01]
[1730667141632,3.64505,2469.1,2469.0,0.10706262]
[1730667141830,3.64528,2469.0,2468.8,0.8428]
[1730667142004,3.64528,2469.0,2468.8,0.01]
[1730667143038,3.64505,2469.1,2468.8,0.01]
[1730667143558,3.70645,2469.3,2469.0,0.01]
[1730667143749,3.64505,2469.1,2469.0,0.01]
[1730667143916,3.64505,2469.1,2468.8,0.01]
[1730667144300,0.0616,2469.0,2468.6,0.01]
[1730667144503,3.64564,2468.7,2468.3,0.7823]
[1730667144747,3.64564,2468.7,2468.6,0.01]
[1730667145039,3.64588,2468.6,2468.3,0.7923]
[1730667145241,3.64588,2468.6,2468.0,3.64653]
[1730667145242,3.64588,2468.6,2468.5,0.01]
[1730667145940,3.64564,2468.7,2468.5,0.01]
[1730667146242,3.6455,2468.8,2468.5,0.01]
[1730667146540,3.64579,2468.6,2468.5,0.01]
[1730667146860,3.64551,2468.8,2468.5,0.01]
[1730667147142,7.29112,2468.8,2468.5,0.01]
[1730667147546,3.64571,2468.7,2468.5,0.01]
[1730667147750,3.64551,2468.8,2468.5,0.01]
[1730667147751,7.29112,2468.8,2468.5,0.01]
[1730667147949,3.64579,2468.6,2468.5,0.01]
[1730667148610,3.64565,2468.7,2468.5,0.01]
[1730667149648,3.64594,2468.5,2468.3,0.01]
[1730667150009,7.29197,2468.5,2468.3,0.01]
[1730667150229,3.64594,2468.5,2468.3,0.01]
[1730667150470,3.64575,2468.7,2468.3,0.01]
[1730667150634,3.64582,2468.6,2468.3,0.01]
[1730667150987,3.64575,2468.7,2468.4,0.09769643]
[1730667151326,3.64593,2468.5,2468.4,0.09769643]
[1730667151769,7.2917,2468.6,2468.4,0.09769643]
[1730667151964,3.64581,2468.6,2468.4,0.09769643]
[1730667152267,3.64593,2468.5,2468.4,0.09769643]
[1730667153563,3.7074,2468.6,2468.4,0.09769643]
[1730667153726,3.64593,2468.5,2468.4,0.09769643]
[1730667154127,3.64566,2468.7,2468.4,0.09769643]
[1730667154563,7.29138,2468.7,2468.4,0.09769643]
[1730667155137,3.64593,2468.5,2468.4,0.09769643]
[1730667155745,3.64613,2468.4,2468.1,0.01]
[1730667155945,3.64581,2468.6,2468.4,0.01]
[1730667156171,3.64586,2468.6,2468.4,0.01]
[1730667156471,3.64575,2468.7,2468.4,0.01]
[1730667156472,3.64593,2468.5,2468.4,0.01]
[1730667156671,3.64575,2468.7,2468.4,0.01]
[1730667156871,3.64582,2468.6,2468.4,0.01]
[1730667158176,3.64545,2468.9,2468.4,0.01]
[1730667158388,7.29093,2468.9,2468.6,0.01]
[1730667158572,3.64545,2468.9,2468.6,0.01]
[1730667158794,3.70676,2469.1,2468.6,0.01]
[1730667158795,3.6452,2469.0,2468.6,0.01]
[1730667159062,3.70676,2469.1,2468.6,0.01]
[1730667159063,3.64516,2469.1,2468.8,0.01]
[1730667159852,3.64515,2469.1,2468.8,0.01]
[1730667160084,3.0,2469.3,2468.6,0.01]
[1730667160085,3.64543,2468.9,2468.6,0.01]
[1730667160582,3.64543,2468.9,2468.8,0.01]
[1730667160947,3.64543,2468.9,2468.6,0.01]
[1730667161147,3.64564,2468.7,2468.6,0.01]
[1730667161866,7.2912,2468.8,2468.6,0.01]
[1730667162077,0.0616,2469.0,2468.6,0.01]
[1730667162241,3.64536,2468.9,2468.6,0.01]
[1730667162445,7.29082,2468.9,2468.6,0.01]
[1730667162743,0.0616,2469.2,2468.4,0.01]
[1730667162744,3.64564,2468.7,2468.4,0.01]
[1730667162940,3.64586,2468.6,2468.4,0.01]
[1730667163355,3.64564,2468.7,2468.4,0.01]
[1730667163356,3.64573,2468.7,2468.4,0.01]
[1730667163977,3.64573,2468.7,2468.6,0.01]
[1730667164888,3.64573,2468.7,2468.4,0.01]
[1730667165264,3.64573,2468.7,2468.6,0.01]
[1730667165454,3.64573,2468.7,2468.4,0.01]
[1730667165656,3.64573,2468.7,2468.6,0.01]
[1730667165859,3.64573,2468.7,2468.2,3.64636]
[1730667165860,3.64573,2468.7,2468.4,0.01]
[1730667166280,3.64573,2468.7,2468.6,0.01]
[1730667166482,3.64573,2468.7,2468.4,0.01]
[1730667167060,3.64581,2468.6,2468.4,0.01]
[1730667167480,3.64581,2468.6,2468.1,0.765]
[1730667167481,3.6461,2468.4,2468.2,0.01]
[1730667167793,3.64649,2468.2,2468.0,0.01]
[1730667168091,3.64652,2468.1,2467.9,0.765]
[1730667168394,3.64652,2468.1,2467.8,0.01]
[1730667168395,3.64667,2468.0,2467.8,0.01]
[1730667168692,3.64667,2468.0,2467.7,0.765]
[1730667168693,3.64738,2467.6,2467.4,0.01]
[1730667169199,0.0616,2467.9,2467.0,0.01]
[1730667169200,3.7094,2467.3,2467.0,0.01]
[1730667169348,7.35721,2467.3,2467.0,0.01]
[1730667169673,3.70945,2467.2,2467.1,0.09469233]
[1730667169872,3.64785,2467.2,2467.1,0.09469233]
[1730667170083,3.64785,2467.2,2466.8,0.01]
[1730667170450,3.6478,2467.3,2466.8,0.01]
[1730667170747,3.6478,2467.3,2466.9,0.09469233]
[1730667170961,3.64756,2467.4,2466.9,0.09469233]
[1730667171165,3.64779,2467.3,2466.9,0.09469233]
[1730667171361,3.64782,2467.3,2467.0,0.01]
[1730667171891,3.64788,2467.2,2467.0,0.01]
[1730667172088,3.64788,2467.2,2467.1,0.09469233]
[1730667173281,3.64773,2467.3,2467.1,0.09469233]
[1730667173452,3.64785,2467.2,2467.1,0.09469233]
[1730667173852,3.64773,2467.3,2467.1,0.09469233]
[1730667174149,7.29555,2467.3,2467.1,0.09469233]
[1730667174475,3.64773,2467.3,2467.2,0.01]
[1730667174790,3.64741,2467.5,2467.4,0.01]
[1730667175287,3.64736,2467.6,2467.4,0.01]
[1730667175587,7.29475,2467.6,2467.5,0.09523113]
[1730667175993,3.64736,2467.6,2467.5,0.09523113]
[1730667177000,3.64692,2467.9,2467.5,0.09523113]
[1730667177158,3.64692,2467.9,2467.6,0.01]
[1730667177558,3.64692,2467.9,2467.7,0.09517123]
[1730667178609,1.25899419,2468.6,2467.7,0.09517123]
[1730667178610,3.64643,2468.2,2468.0,0.01]
[1730667179199,3.64643,2468.2,2468.1,0.09532675]
[1730667179356,6.72586827,2468.4,2468.1,0.09532675]
[1730667179357,6.72586827,2468.4,2468.2,0.01]
[1730667179559,3.64618,2468.4,2468.2,0.01]
[1730667179761,3.64623,2468.3,2468.2,0.01]
[1730667180687,3.64638,2468.2,2468.0,0.01]
[1730667181088,3.64652,2468.1,2468.0,0.01]
[1730667181254,3.07968827,2468.4,2468.0,0.01]
[1730667181255,0.37258827,2468.4,2468.0,0.01]
[1730667181455,3.64651,2468.2,2468.0,0.01]
[1730667182207,3.07968827,2468.1,2467.8,0.01]
[1730667182359,3.64682,2467.9,2467.8,0.01]
[1730667182760,3.64667,2468.0,2467.8,0.01]
[1730667182974,7.29345,2468.0,2467.8,0.01]
[1730667183172,3.64667,2468.0,2467.8,0.01]
[1730667183943,3.64653,2468.1,2467.8,0.01]
[1730667184103,3.64653,2468.1,2467.8,0.459052]
[1730667185561,3.64637,2468.3,2467.8,0.459052]
[1730667185899,3.64637,2468.3,2468.0,0.01]
[1730667186202,4.28075007,2468.4,2468.2,0.01]
[1730667186502,4.90464419,2468.7,2468.4,0.01]
[1730667186864,3.64565,2468.7,2468.5,0.09515515]
[1730667187057,3.64558,2468.8,2468.6,0.01]
[1730667187599,3.64558,2468.8,2468.7,0.09515116]
[1730667188217,3.64587,2468.6,2468.4,0.01]
[1730667188591,3.64587,2468.6,2468.5,0.09509131]
[1730667191311,6.72532827,2468.7,2468.5,0.09509131]
[1730667191818,3.64579,2468.6,2468.5,0.09509131]
[1730667192127,6.72532827,2468.7,2468.5,0.09509131]
[1730667192436,3.64564,2468.7,2468.5,0.09509131]
[1730667193594,3.64579,2468.6,2468.5,0.09509131]
[1730667193798,3.64564,2468.7,2468.5,0.09509131]
[1730667195714,7.2914,2468.7,2468.5,0.09509131]
[1730667195913,3.64564,2468.7,2468.5,0.09509131]
[1730667196428,3.64564,2468.7,2468.2,0.01]
[1730667196429,3.64579,2468.6,2468.2,0.01]
[1730667196599,3.64638,2468.2,2467.7,0.01]
[1730667196799,3.0616,2468.5,2467.6,0.754]
[1730667196800,6.70758,2468.5,2468.1,0.01]
[1730667197103,3.64682,2467.9,2467.8,0.0985142]
[1730667197298,7.35513,2468.0,2467.8,0.09218156]
[1730667197611,7.35513,2468.0,2467.8,0.08218156]
[1730667197612,10.33810827,2467.9,2467.8,0.08218156]
[1730667197812,11.60756886,2467.9,2467.8,0.08218156]
[1730667198016,3.64736,2467.6,2467.3,0.01]
[1730667198544,3.64736,2467.6,2467.4,0.0766988]
[1730667199447,3.64741,2467.5,2467.4,0.0766988]
[1730667199941,3.64741,2467.5,2467.3,0.01]
[1730667200442,3.64756,2467.4,2467.3,0.01]
[1730667200646,7.29471,2467.6,2467.3,0.01]
[1730667200864,3.0,2467.8,2467.5,0.01]
[1730667200865,6.64708,2467.8,2467.5,0.01]
[1730667201005,3.64714,2467.7,2467.5,0.01]
[1730667201209,3.64714,2467.7,2467.6,0.07688589]
[1730667201517,7.50659422,2467.7,2467.6,0.07688589]
[1730667201709,4.76866742,2467.7,2467.6,0.07688589]
[1730667202038,3.64714,2467.7,2467.5,0.01]
[1730667202550,3.64714,2467.7,2467.6,0.07688589]
[1730667203835,3.64714,2467.7,2467.5,0.01]
[1730667204302,3.64695,2467.9,2467.7,0.01]
[1730667204506,3.64653,2468.1,2467.7,0.01]
[1730667204735,3.64623,2468.3,2468.1,0.01]
[1730667205107,3.64623,2468.3,2468.2,0.07688589]
[1730667206656,3.64609,2468.4,2468.2,0.07688589]
[1730667206957,3.64609,2468.4,2468.3,0.01]
[1730667207116,7.29175,2468.6,2468.3,0.01]
[1730667207316,3.64608,2468.4,2468.3,0.01]
[1730667207517,3.64623,2468.3,2468.1,0.01]
[1730667207973,3.64623,2468.3,2468.2,0.07688589]
[1730667208264,3.64623,2468.3,2468.1,0.01]
[1730667208265,3.64638,2468.2,2468.1,0.01]
[1730667211234,4.375461,2468.3,2468.1,0.01]
[1730667211460,3.64638,2468.2,2468.1,0.01]
[1730667212562,3.64623,2468.3,2468.1,0.01]
[1730667213749,3.64667,2468.0,2467.9,0.01]
[1730667214086,12.48322481,2468.3,2467.9,0.01]
[1730667214289,3.64641,2468.2,2467.9,0.01]
[1730667214775,3.64641,2468.2,2468.0,0.07661526]
[1730667215869,4.91556059,2468.4,2468.1,0.7639]
[1730667216045,3.64631,2468.3,2468.1,0.7639]
[1730667216376,3.64631,2468.3,2468.2,0.07665108]
[1730667216377,4.91577059,2468.3,2468.2,0.07665108]
[1730667216678,5.94121906,2468.3,2468.2,0.07665108]
[1730667216987,5.94345659,2468.3,2468.2,0.07665108]
[1730667217337,4.67175847,2468.3,2468.2,0.07665108]
[1730667217564,6.36437259,2468.3,2468.2,0.07665108]
[1730667217798,6.36437259,2468.3,2467.9,0.01]
[1730667217970,4.91851308,2468.2,2467.9,0.01]
[1730667219060,1.27200308,2468.2,2468.1,0.01]
[1730667219761,4.91838308,2468.2,2468.1,0.01]
[1730667220784,4.91838308,2468.2,2468.1,0.08665108]
[1730667220969,4.91838308,2468.2,2468.1,0.01]
[1730667221694,3.64638,2468.2,2468.1,0.08666698]
[1730667221896,3.64638,2468.2,2468.1,0.01]
[1730667222094,3.64638,2468.2,2468.1,0.08666698]
[1730667222095,4.9195163,2468.2,2468.1,0.08666698]
[1730667222294,4.9195163,2468.2,2468.1,0.01]
[1730667222499,4.9195163,2468.2,2468.1,0.08666698]
[1730667222500,3.64638,2468.2,2468.1,0.08666698]
[1730667222797,3.64638,2468.2,2468.1,0.01]
[1730667223099,3.64667,2468.0,2467.9,0.01]
[1730667223395,3.64667,2468.0,2467.7,0.01]
[1730667223605,3.64667,2468.0,2467.9,0.07666698]
[1730667223898,7.99808902,2468.1,2467.9,0.01]
[1730667224267,1.27330448,2468.0,2467.9,0.01]
[1730667224468,4.91990448,2468.1,2467.9,0.01]
[1730667224782,4.9200171,2468.1,2467.9,0.01]
[1730667224987,4.9200171,2468.1,2468.0,0.07570031]
[1730667225162,4.92001871,2468.1,2468.0,0.07570031]
[1730667226177,1.27341871,2468.1,2468.0,0.07570031]
[1730667226491,4.91993871,2468.1,2468.0,0.07570031]
[1730667226882,12.84789283,2468.1,2468.0,0.07570031]
[1730667227132,11.57447412,2468.1,2468.0,0.07570031]
[1730667227415,11.57447412,2468.1,2467.3,0.8089]
[1730667227416,3.64745,2467.5,2467.3,0.8089]
[1730667227931,3.64745,2467.5,2467.4,0.07315494]
[1730667228081,4.9211132,2467.5,2467.4,0.07315494]
[1730667228286,3.64756,2467.4,2467.3,0.01]
[1730667230313,4.92106402,2467.5,2467.3,0.01]
[1730667231478,4.92106402,2467.5,2467.4,0.07335794]
[1730667231681,1.27364402,2467.5,2467.4,0.07335794]